Cogmind - Beta 13 @@@ ROGUE MODE // 2024.05.28 @ 12:00:43 Player: kikul Result: Destroyed by H-61 Shepherd with Heavy Assault Cannon Performance ------------- Evolutions (3) 1500 Regions Visited (6) 1200 Robots Destroyed (46) 230 Value Destroyed (1323) 1323 Prototype IDs (0) 0 Alien Tech Used (0) 0 Bonus (500) 500 TOTAL SCORE: 4753 Bonus ------- Entered DSFs 500 Cogmind --------- Core Integrity 0/700 Matter 300/300 Energy 98/100 System Corruption 9% Temperature Cool (0) Movement Core (50) Location -7/DSF Parts ------- > --- POWER (3) -------- (None) > --- PROPULSION (4) --- (None) > --- UTILITY (3) ------ (None) > --- WEAPON (3) ------- Heavy Mace > --- INVENTORY (5) ---- Shock Absorption System Peak State ------------ > --- POWER ------------ Light Ion Engine Light Deuterium Engine Light Nuclear Core > --- PROPULSION ------- Improved Titanium Leg Improved Titanium Leg Improved Titanium Leg Improved Titanium Leg > --- UTILITY ---------- Small Storage Unit Armor Integrity Analyzer Power Shielding > --- WEAPON ----------- Heavy Mace Heavy Mace Heavy Mace > --- INVENTORY -------- Light Ion Engine Improved Terrain Scanner Reaction Control System Improved Medium Armor Plating Improved Medium Armor Plating Improved Medium Armor Plating Heavy Mace [Rating: 40] Favorites ----------- Power Light Ion Engine Engine Light Ion Engine Power Core Light Nuclear Core Propulsion Improved Titanium Leg Treads Light Treads Leg Improved Titanium Leg Utility Small Storage Unit Device Disposable Heat Sink Storage Small Storage Unit Processor Target Analyzer Protection Power Shielding Weapon Heavy Mace Energy Gun EM Pulse Gun Ballistic Gun Assault Rifle Impact Weapon Heavy Mace Build | -11 -10 -10 -9 -8 -7 -7 ------- Run | Yrd Mat Min Mat Mat Fac DSF Slots Evolved 6 | . . . 2 2 2 . Power 2 | . . . . . 2 . Propulsion 2 | . . . 1 1 . . Utility 1 | . . . 1 . . . Weapon 1 | . . . . 1 . . Parts Attached 43 | 4 5 . 6 19 2 7 Power 6 | 1 . . 1 2 2 . Engine 4 | 1 . . 1 . 2 . Core 2 | . . . . 2 . . Reactor . | . . . . . . . Propulsion 12 | 2 2 . . 7 . 1 Treads 2 | . 2 . . . . . Leg 10 | 2 . . . 7 . 1 Wheel . | . . . . . . . Hover . | . . . . . . . Flight . | . . . . . . . Utility 13 | 1 1 . 3 4 . 4 Device 4 | . 1 . 1 1 . 1 Storage 1 | 1 . . . . . . Processor 3 | . . . 1 2 . . Hackware . | . . . . . . . Protection 5 | . . . 1 1 . 3 Artifact . | . . . . . . . Weapon 12 | . 2 . 2 6 . 2 Energy Gun 6 | . 2 . 2 2 . . Energy Cannon . | . . . . . . . Ballistic Gun 1 | . . . . 1 . . Ballistic Cannon . | . . . . . . . Launcher . | . . . . . . . Special Weapon . | . . . . . . . Impact Weapon 5 | . . . . 3 . 2 Slashing Weapon . | . . . . . . . Piercing Weapon . | . . . . . . . Special Melee Weapon . | . . . . . . . Unidentified Prototypes . | . . . . . . . Corrupted Parts 1 | . . . . . . 1 System Corruption 9 | . . . . . . 9 Parts Lost 21 | . . . 4 2 . 15 Power 4 | . . . 1 . . 3 Propulsion 6 | . . . . 1 . 5 Utility 6 | . . . . 1 . 5 Weapon 5 | . . . 3 . . 2 Highest Loss Streak 9 | . . . 2 1 . 9 To Critical Strikes . | . . . . . . . Average Slot Usage (%) 83 | . 82 100 82 87 100 75 Engine 8 | . 14 14 7 5 15 9 Core 1 | . . . . 3 7 2 Treads 8 | . 10 28 20 . . . Leg 15 | . 17 . . 26 30 21 Device 8 | . 7 14 11 11 . 1 Storage 9 | . 14 14 11 9 7 4 Processor 4 | . . . 8 3 7 . Protection 4 | . . . 2 2 7 13 Energy Gun 9 | . 17 28 20 . . . Impact Weapon 12 | . . . . 25 23 19 Naked Turns . | . . . . . . . Heaviest Build 35 | 8 13 13 14 20 28 35 Greatest Support 89 | 20 40 40 40 89 80 80 Greatest Overweight (x) 7 | 2 . . 4 . . 7 Average Overweight (x) . | . . . . . . . Largest Inventory Capacity 8 | 8 8 8 8 8 8 8 Average Capacity 7 | 7 8 8 8 8 8 6 Most Carried 8 | 6 8 8 8 8 5 8 Average Carried 6 | 3 6 8 7 6 4 5 Final Capacity 8 | 8 8 8 8 8 8 5 Final Carried 8 | 6 8 8 8 6 4 1 Class Distribution -------------------- 98% | Mutant Dominant Class ---------------- Mutant | -10/Materials Mutant | -10/Mines Mutant | -9/Materials Mutant | -8/Materials Mutant | -7/Factory Mutant | -7/DSF Resources | -11 -10 -10 -9 -8 -7 -7 ----------- Run | Yrd Mat Min Mat Mat Fac DSF Matter Collected 614 | 203 87 . 55 200 . 69 Remotely . | . . . . . . . Salvage Created 1511 | . 110 . 514 565 . 322 Parts 57 | . 7 . 28 12 . 10 Haulers Intercepted . | . . . . . . . Recyclers Shooed 1 | . . . 1 . . . Parts Field Recycled . | . . . . . . . Retrieved Matter . | . . . . . . . Parts Self-Destructed . | . . . . . . . Prevented . | . . . . . . . Kills | -11 -10 -10 -9 -8 -7 -7 ------- Run | Yrd Mat Min Mat Mat Fac DSF Combat Hostiles Destroyed 34 | . 2 . 11 13 . 8 Melee 12 | . . . . 8 . 4 Guns 9 | . 1 . 8 . . . AOE 3 | . 1 . 2 . . . Classes Destroyed 10 | . 2 . 3 4 . 1 Worker 5 | . . . 2 3 . . Builder 1 | . . . . 1 . . Tunneler 1 | . . . . 1 . . Recycler 1 | . . . 1 . . . Watcher 4 | . 1 . 1 2 . . Swarmer 11 | . . . 4 4 . 3 Grunt 15 | . 2 . 7 6 . . Brawler 1 | . . . . 1 . . Sentry 2 | . . . . 2 . . Specialist 5 | . . . . . . 5 Best Kill Streak 7 | . 2 . 5 7 . 2 Combat Bots Only 7 | . 1 . 5 7 . 2 Max Kills in Single Turn 2 | . 1 . 2 1 . 1 Gunslinging . | . . . . . . . Exploded 2 | . 1 . 2 . . . Melee 1 | . . . . 1 . 1 Uniques/NPCs Destroyed . | . . . . . . . Combat | -11 -10 -10 -9 -8 -7 -7 -------- Run | Yrd Mat Min Mat Mat Fac DSF Hostile Shots Fired 352 | . 13 . 99 89 . 151 Missed 107 | . 3 . 40 20 . 44 Damage Taken 4210 | . 112 . 617 1067 . 2414 Core 1037 | . . . 174 152 . 711 Absorbed by Shields . | . . . . . . . Redirected to Shielding 66 | . . . 3 14 . 49 Core Remaining (%) 82 | 100 . 100 56 72 . . Volleys Fired 45 | . 6 . 39 . . . Largest 2 | . 2 . 2 . . . Hottest 85 | . 80 . 85 . . . Shots Fired 80 | . 12 . 68 . . . Gun 80 | . 12 . 68 . . . Cannon . | . . . . . . . Launcher . | . . . . . . . Special . | . . . . . . . Kinetic . | . . . . . . . Thermal . | . . . . . . . Explosive . | . . . . . . . Electromagnetic 80 | . 12 . 68 . . . Robot Hit Streak 9 | . 2 . 9 . . . Robot Miss Streak 3 | . 2 . 3 . . . Penetration Max . | . . . . . . . Secondary Targets . | . . . . . . . Shots Hit Robots 113 | . 5 . 40 49 . 19 Core Hits 31 | . 3 . 19 6 . 3 Critical Kills 1 | . . . . . . 1 Critical Parts Destroyed 9 | . . . . 6 . 3 Critical Strikes 12 | . . . 2 6 . 4 Corrupt 2 | . . . 2 . . . Smash 10 | . . . . 6 . 4 Melee Attacks 99 | . . . . 72 . 27 Impact 99 | . . . . 72 . 27 Slashing . | . . . . . . . Piercing . | . . . . . . . Sneak Attacks 7 | . . . . 6 . 1 Combat Hostiles 1 | . . . . . . 1 Follow-up Attacks 22 | . . . . 20 . 2 Damage Inflicted 3990 | . 114 . 774 2192 . 910 Guns 679 | . 62 . 617 . . . Cannons . | . . . . . . . Explosions 209 | . 52 . 157 . . . Melee 3102 | . . . . 2192 . 910 Ramming . | . . . . . . . Kinetic . | . . . . . . . Thermal 209 | . 52 . 157 . . . Explosive . | . . . . . . . Electromagnetic 679 | . 62 . 617 . . . Impact 3102 | . . . . 2192 . 910 Slashing . | . . . . . . . Piercing . | . . . . . . . Highest Corruption 9 | . . . . 6 . 9 Average Corruption 5 | . . . . 3 . 9 Corruption Purged . | . . . . . . . Corruption Blocked . | . . . . . . . Effects 17 | . . . . 10 . 7 Message Errors 1 | . . . . . . 1 Matter Fused 3 | . . . . 2 . 1 Heat Flow Errors 4 | . . . . 2 . 2 Energy Discharges 1 | . . . . 1 . . Parts Rejected 3 | . . . . 1 . 2 Data Loss (minor) 4 | . . . . 4 . . Alerts 1 | . . . . . . 1 Overload Shots . | . . . . . . . Overflow Damage 956 | . . . . 638 . 318 Projectiles . | . . . . . . . Explosions . | . . . . . . . Melee 956 | . . . . 638 . 318 Knockbacks 17 | . . . . 10 . 7 Impact 17 | . . . . 10 . 7 Kinetic . | . . . . . . . Secondary . | . . . . . . . Self-Inflicted Damage 19 | . . . 19 . . . Shots 1 | . . . 1 . . . Rammed 1 | . . . 1 . . . Targets Rammed 1 | . . . 1 . . . Kicked . | . . . . . . . Crushed . | . . . . . . . Highest Temperature 173 | . 72 . 91 173 . 118 Average Temperature 38 | . 38 . 30 74 . 53 Received Heat Transfer 834 | . 63 . 168 459 . 144 Siege Activations . | . . . . . . . Robots Corrupted 1 | . . . 1 . . . Combat Hostiles 1 | . . . 1 . . . Parts Fried 25 | . . . 4 13 . 8 Impact Corruptions 32 | . . . . 22 . 10 Robots Melted . | . . . . . . . Combat Hostiles . | . . . . . . . Parts Melted . | . . . . . . . Heat Transferred 200 | . 100 . 100 . . . Parts Sabotaged . | . . . . . . . Parts Stolen . | . . . . . . . Parts Stripped . | . . . . . . . Power Chain Reactions 3 | . 1 . 2 . . . Alert | -11 -10 -10 -9 -8 -7 -7 ------- Run | Yrd Mat Min Mat Mat Fac DSF Peak Influence 332 | . 72 27 172 332 150 280 Initial 150 | . . 27 10 68 150 105 Average 102 | . 34 27 56 145 150 183 Maximum Alert Level 1 | . . . . 1 . 1 Low Security (%) 81 | 100 100 100 100 67 100 51 Level 1 18 | . . . . 32 . 48 Level 2 . | . . . . . . . Level 3 . | . . . . . . . Level 4 . | . . . . . . . Level 5 . | . . . . . . . High Security . | . . . . . . . Max Security . | . . . . . . . Squads Dispatched 7 | . 2 . 1 2 . 2 Investigation . | . . . . . . . Extermination . | . . . . . . . Reinforcement 7 | . 2 . 1 2 . 2 Assault . | . . . . . . . Garrison . | . . . . . . . Intercept . | . . . . . . . Searches Triggered . | . . . . . . . Construction Impeded . | . . . . . . . Haulers Reinforced . | . . . . . . . Active Scanning Responses . | . . . . . . . Cargo Convoy Interrupts . | . . . . . . . Stealth | -11 -10 -10 -9 -8 -7 -7 --------- Run | Yrd Mat Min Mat Mat Fac DSF Distress Signals 4 | . 1 . 1 2 . . Communications Jammed . | . . . . . . . Distress Signals . | . . . . . . . Times Spotted 65 | . 8 . 21 21 . 15 Peak Tracking Total 7 | . 3 . 5 7 . 4 Tactical Retreats 7 | . . . 1 1 . 5 Traps | -11 -10 -10 -9 -8 -7 -7 ------- Run | Yrd Mat Min Mat Mat Fac DSF Traps Triggered 1 | . . . . 1 . . Indirectly . | . . . . . . . Trap Hack Attempts . | . . . . . . . Triggered . | . . . . . . . Disarmed . | . . . . . . . Reprogrammed . | . . . . . . . Reused . | . . . . . . . Traps Extracted . | . . . . . . . Installed . | . . . . . . . Triggered 1 | . . . 1 . . . Machines | -11 -10 -10 -9 -8 -7 -7 ---------- Run | Yrd Mat Min Mat Mat Fac DSF Machines Disabled 1 | . 1 . . . . . Max in Single Turn 1 | . 1 . . . . . Machines Repaired . | . . . . . . . Machines Dismantled . | . . . . . . . Machines Sabotaged . | . . . . . . . Overloaded Fab Kills . | . . . . . . . Hacking | -11 -10 -10 -9 -8 -7 -7 --------- Run | Yrd Mat Min Mat Mat Fac DSF Machines Accessed 2 | . 1 . . . 1 . Terminals 2 | . 1 . . . 1 . Fabricators . | . . . . . . . Repair Stations . | . . . . . . . Recycling Units . | . . . . . . . Scanalyzers . | . . . . . . . Garrison Access . | . . . . . . . Total Hacks 3 | . 2 . . . 1 . Successful 3 | . 2 . . . 1 . Failed . | . . . . . . . Catastrophic . | . . . . . . . Database Lockouts . | . . . . . . . Manual . | . . . . . . . Terminals 3 | . 2 . . . 1 . Fabricators . | . . . . . . . Repair Stations . | . . . . . . . Recycling Units . | . . . . . . . Scanalyzers . | . . . . . . . Garrison Access . | . . . . . . . Terminal Hacks 3 | . 2 . . . 1 . Record 1 | . 1 . . . . . Open DSF 1 | . . . . . 1 . Unreport Threat 1 | . 1 . . . . . Fabricator Hacks . | . . . . . . . Repair Station Hacks . | . . . . . . . Recycling Unit Hacks . | . . . . . . . Scanalyzer . | . . . . . . . Garrison Access Hacks . | . . . . . . . Unauthorized Hacks . | . . . . . . . Terminals . | . . . . . . . Fabricators . | . . . . . . . Repair Stations . | . . . . . . . Recycling Units . | . . . . . . . Scanalyzers . | . . . . . . . Garrison Access . | . . . . . . . Data Cores Recovered . | . . . . . . . Used . | . . . . . . . Hacking Detections . | . . . . . . . Full Trace Events . | . . . . . . . Feedback Events . | . . . . . . . Feedback Blocked . | . . . . . . . Robot Schematics Acquired . | . . . . . . . Robots Built . | . . . . . . . Authchips . | . . . . . . . Time . | . . . . . . . Total Robot Build Rating . | . . . . . . . Part Schematics Acquired . | . . . . . . . Parts Built . | . . . . . . . Authchips . | . . . . . . . Time . | . . . . . . . Total Part Build Rating . | . . . . . . . Parts Repaired . | . . . . . . . Time . | . . . . . . . Parts Recycled . | . . . . . . . Recycled Matter . | . . . . . . . Retrieved Matter . | . . . . . . . Retrieved Components . | . . . . . . . Parts Scanalyzed . | . . . . . . . Part Schematics Acquired . | . . . . . . . Parts Damaged . | . . . . . . . Bothacking | -11 -10 -10 -9 -8 -7 -7 ------------ Run | Yrd Mat Min Mat Mat Fac DSF Used RIF Installer . | . . . . . . . Robots Hacked . | . . . . . . . Non-combat . | . . . . . . . Combat . | . . . . . . . Robot Hacks Applied . | . . . . . . . Relay Couplers Released . | . . . . . . . Fabnet Peak Effective % . | . . . . . . . Robots Rewired . | . . . . . . . Allies Hacked . | . . . . . . . Hacks Repelled . | . . . . . . . Allies | -11 -10 -10 -9 -8 -7 -7 -------- Run | Yrd Mat Min Mat Mat Fac DSF Total Allies . | . . . . . . . Largest Group . | . . . . . . . Highest-Rated Group . | . . . . . . . Highest-Rated Ally . | . . . . . . . Total Orders . | . . . . . . . Ally Attacks . | . . . . . . . Total Damage . | . . . . . . . Kills . | . . . . . . . Allies Corrupted . | . . . . . . . Allies Melted . | . . . . . . . Intel | -11 -10 -10 -9 -8 -7 -7 ------- Run | Yrd Mat Min Mat Mat Fac DSF Robot Analysis Total . | . . . . . . . Derelict Logs Recovered . | . . . . . . . Drone Launches . | . . . . . . . Drone Recoveries . | . . . . . . . Exploration | -11 -10 -10 -9 -8 -7 -7 ------------- Run | Yrd Mat Min Mat Mat Fac DSF Turns Passed 1966 | 74 274 18 607 623 30 340 Spaces Moved 1017 | 55 179 12 288 329 22 132 Core 45 | 12 . . 19 . . 14 Treads 344 | . 63 12 269 . . . Legs 628 | 43 116 . . 329 22 118 Wheels . | . . . . . . . Hover . | . . . . . . . Flight . | . . . . . . . Fastest Speed 50 | 50 120 160 150 120 130 50 Average Speed 139 | 114 134 160 162 123 130 142 Slowest Speed 400 | 150 160 160 250 130 130 400 Overloaded Moves . | . . . . . . . Propulsion Burnouts . | . . . . . . . Robots Hopped . | . . . . . . . Cave-ins Triggered . | . . . . . . . Exploration Rate (%) 24 | 3 43 7 25 35 1 54 Regions Visited 6 Branch Regions 1 Pre-discovered Areas . | . . . . . . . Known Exits Taken 1 | . . . . . 1 . Unknown Exits Taken 5 | 1 1 1 1 1 . . Scrap Searched . | . . . . . . . Spaces Dug . | . . . . . . . Terrain Destroyed 12 | . 4 . 8 . . . Melee . | . . . . . . . Projectile . | . . . . . . . AOE 12 | . 4 . 8 . . . Terrain Rammed . | . . . . . . . Walls Destroyed . | . . . . . . . Machines Disabled . | . . . . . . . Actions | -11 -10 -10 -9 -8 -7 -7 --------- Run | Yrd Mat Min Mat Mat Fac DSF Total 1357 | 64 202 11 359 454 23 244 Wait 134 | . 5 . 16 38 . 75 Move 1011 | 54 178 11 287 328 21 132 Hop . | . . . . . . . Pick Up 35 | 6 6 . 5 12 . 6 Fast Attach 12 | 4 1 . . 5 . 2 Attach 29 | . 4 . 4 14 2 5 Detach . | . . . . . . . Swap 2 | . . . 2 . . . Drop 18 | . 2 . 5 9 . 2 Fire 45 | . 6 . 39 . . . Melee 70 | . . . . 48 . 22 Ram . | . . . . . . . Kick . | . . . . . . . Crush 1 | . . . 1 . . . Escape Stasis . | . . . . . . . Rewire . | . . . . . . . Trap . | . . . . . . . Miscellaneous . | . . . . . . . Route ------- -11/Scrapyard -10/Materials -10/Mines -9/Materials -8/Materials -7/Factory -7/DSF History --------- Turn | Location | Event 27 | -11/Scrapyard | Discovered new exit (range 14) 75 | -11/Scrapyard | Entered Materials 306 | -10/Materials | Build established: Mutant 341 | -10/Materials | Discovered new exit (range 6) 349 | -10/Materials | Entered Mines 356 | -10/Mines | Discovered new exit (range 8) 367 | -10/Mines | Entered Materials 367 | -9/Materials | Evolved 2 slots: Propulsion x1, Utility x1 941 | -9/Materials | Discovered new exit (range 15) 974 | -9/Materials | Entered another Materials area 974 | -8/Materials | Evolved 2 slots: Propulsion x1, Weapon x1 1582 | -8/Materials | Discovered new exit (range 13) 1594 | -8/Materials | Destroyed 7 combat bots 1597 | -8/Materials | Entered Factory 1597 | -7/Factory | Evolved 2 slots: Power x2 1623 | -7/Factory | Identified exit to DSF 1627 | -7/Factory | Entered DSF 1659 | -7/DSF | Additional patrols routed to DSF 1878 | -7/DSF | Core integrity fell below 50% 1899 | -7/DSF | Lost 9 parts (2p3n3u1w) 1942 | -7/DSF | Core integrity fell below 20% 1967 | -7/DSF | Destroyed by H-61 Shepherd with Heavy Assault Cannon Last Messages --------------- crushing effect. 01951_ X-62 Marksman knocked back. 01952_ X-62 Marksman system terminally corrupted. 01952_ Imp. Cooling System fried. 01952_ Slug penetrates Wall. 01957_ Penetrated by Slug. 01957_ Knocked back. 01958_ Penetrated by Slug. 01958_ Shock Absorption System destroyed. 01958_ Acquired 8 matter. 01961_ System corrupted: Imp. Medium Armor Plating rejected. 01961_ Penetrated by Slug. 01962_ Hvy. Mace destroyed. 01962_ Imp. Medium Armor Plating destroyed. 01962_ Knocked back. 01963_ Acquired 2 matter. 01963_ The unstable cave ceiling collapses. 01964_ Penetrated by Slug. Map ----- +----------------------------------------------------+ | ??????????????????????????????????????????????? | | ??????????????????????????????????????????????? | | ??????????????????????????????????????????????? | | ??????????????????????????????????????????????? | | ??????????????????????????????????????????????? | | ??????????????????????????????????????????????? | | ??????????????????????????????????????????????? | | ??????######?####???#?????????????????????????? | | ??????#!! #? #?!!#?????????????????????????? | | ??????#!!] ## #!!!## ????????????????????? | | ????###^^] ??????????? ?????? | | ????# ]]]] ??????????? ?????? | | ??????#^^%= ??????????? ?????? | | ??????#!!!%!# "!!!#? ??????????? ?????? | | ??????#!!%[##?? #!!!#?# #??????????# ?????? | | ??????### *%##??????### ###????????# ##????? | | ???????#%%!!!#???????!! !!????????? !#????? | | ???????#%! !!#????????! !!????????? !?????? | | ???????#%% !!#????????! !?????????? !?????? | | ???????#" ###??????### ###???????## ##????? | | ??????## #??????#]] #????????! #????? | | ??????#" #??????#]] #????????! #????? | | ??????#"" ##########]] ########?# #?????? | | ??????### ##" # #?# #?#!!!# !### ###???? | | ????###"" /"# # ### ###! *# ##% "%###?? | | ????""""" h !% %@ """""#? | | ????"##"" =%H%=% % % ^^ ""##"?? | | ??????#""%%"## %# # !!#!!!#!!##"""%"#???? | | ??????#""%""######### %[ !!#########""""%#???? | | ??????####"##???????#########???????##"####???? | | ?????????#"#?????????????????????????#"#??????? | | ?????????""#?????????????????????????#""??????? | | ??????????????????????????????????????????????? | | ??????????????????????????????????????????????? | | ??????????????????????????????????????????????? | | ??????????????????????????????????????????????? | | ??????????????????????????????????????????????? | | | | | | | | | | | | | | | | | | | | | | | | | | | +----------------------------------------------------+ Best States ------------- Heat Dissipation 38 Coolant Potential 50 Energy Generation 28 Energy Capacity 225 Matter Stores 300 Matter Capacity 300 Sight Range 16 Terrain Scan Density 10 Additional Mass Support 9 Armor Coverage 450 Resistance: EX 25 Power Shielding 33 Evasion (%) 55 Target Analysis 5 Armor Integrity Analysis 30 Recoil Reduction 2 Item Schematics ----------------- None Robot Schematics ------------------ None Fabricated ------------ Nothing Alien Tech Used ----------------- None Achievements -------------- Everything Is Under Control Challenges ------------ None Game ------ Seed MeleeDispersionChronowheel Manual? 0 Play Time 00:29:44 Cumulative 6.8 hours Start 2024.05.28 @ 11:29:39 End 2024.05.28 @ 12:00:43 Sessions 1 Manual Loads 0 Difficulty Rogue Special Mode None Game No. 12 Rogue 12 Adventurer 0 Explorer 0 Win Type - Total 0 Types 0/0/0/0/0/0/0/0/0 Lore% 2 Gallery% 8 Achievement% 7 Wizard Run 0 Options --------- Layout 1 ASCII 0 Keyboard 0 Movement Mouse Keybinds 0 Fullscreen 1 Font 32/SmallcapsGlow Map View 50x35 Zoom Use 0% Tactical HUD 1 Map Filters NONE Filters NONE Steam 1 RUN: d22515c0-5728-4078-bec1-7f1e52a62c32